Workbook

Sheet 0_ポートフォリオ
C2: 資産配分のシミュレーションツール | Q2: 年間投資額 | R2: 100000
C3: https://myindex.jp/user/myaa.php | O3: ※ 投資は自己責任で
B4: 資産グループ | C4: 国内株 | D4: 持ち株会 | E4: 海外株(先進株) | F4: ｴﾏｰｼﾞｪﾝｼｰ株(新興株) | G4: 全世界株式 | H4: 国債 | I4: 国内債券 | J4: 外国債(先進債) | K4: 外国債(エマージング債券) | L4: 国内REIT | M4: 海外REIT | N4: FX | O4: 総資産(評価額)
B5: 詳細(購入銘柄) | C5: xxxxxx | D5: xxxxxx | E5: xxxxxx | F5: xxxxxx | G5: xxxxxx | H5: xxxxxx | I5: xxxxxx | J5: xxxxxx | K5: xxxxxx | L5: xxxxxx | M5: xxxxxx | N5: xxxxxx
B6: 割合 | C6: 0.15 | D6: 0.15 | E6: 0.15 | F6: 0.15 | G6: 0 | H6: 0.15 | I6: 0 | J6: 0 | K6: 0 | L6: 0.15 | M6: 0.1 | N6: 0 | O6: =SUM(C6:N6) -> 1
B7: 総資産適正分割額 | C7: =$O$8*C6 -> 1312.5 | D7: =$O$8*D6 -> 1312.5 | E7: =$O$8*E6 -> 1312.5 | F7: =$O$8*F6 -> 1312.5 | G7: =$O$8*G6 -> 0 | H7: =$O$8*H6 -> 1312.5 | I7: 0 | J7: 0 | K7: 0 | L7: 1312.5 | M7: 875 | N7: 0
B8: 資産評価額(現在) | C8: 600 | D8: 1000 | E8: 1550 | F8: 1000 | G8: 0 | H8: 4200 | I8: 0 | J8: 0 | K8: 0 | L8: 200 | M8: 200 | N8: 0 | O8: =SUM(C8:N8) -> 8750
B9: 過不足割合 | C9: =(C8-C7)/C7 -> -0.5428571429 | D9: -0.2380952381 | E9: 0.180952381 | F9: -0.2380952381 | H9: 2.2 | L9: -0.8476190476 | M9: -0.7714285714
B10: 信託報酬 | C10: 0.001728 | D10: 0 | E10: 0.001836 | F10: 0.003672 | L10: 0.0027 | M10: 0.00594
B11: 信託報酬割合 | C11: =C10*C6 -> 0.0002592 | D11: =D10*D6 -> 0 | E11: 0.0002754 | F11: 0.0005508 | G11: 0 | H11: 0 | I11: 0 | J11: 0 | K11: 0 | L11: 0.000405 | M11: 0.000594 | N11: 0 | O11: =SUM(C11:N11) -> 0.0020844
B12: 通常月購入額 | C12: =$O$12*C6 -> 1250 | D12: 1250 | E12: 1250 | F12: 1250 | G12: 0 | H12: 1250 | I12: 0 | J12: 0 | K12: 0 | L12: 1250 | M12: 833.3333333 | N12: 0 | O12: =R2/12 -> 8333.333333
B13: 毎日積立購入額 | C13: =C12/30 -> 41.66666667 | D13: =D12/30 -> 41.66666667 | E13: 41.66666667 | F13: 41.66666667 | G13: =G12/30 -> 0 | H13: 41.66666667 | I13: 0 | J13: 0 | K13: 0 | L13: =L12/30 -> 41.66666667 | M13: 27.77777778
B14: リバランス額 | C14: =C7-C8 -> 712.5 | D14: 312.5 | E14: -237.5 | F14: 312.5 | G14: 0 | H14: -2887.5 | I14: 0 | J14: 0 | K14: 0 | L14: 1112.5 | M14: 675 | N14: 0
B15: 新規購入額 | C15: =C12+C14 -> 1962.5 | D15: 1562.5 | E15: 1012.5 | F15: 1562.5 | G15: =G12+G14 -> 0 | H15: -1637.5 | I15: 0 | J15: 0 | K15: 0 | L15: 2362.5 | M15: 1508.333333 | N15: 0
B16: 備考

Sheet 1_資産推移
A1: Index | B1: 日時 | C1: 国内株 | D1: 持ち株会 | E1: 海外株(先進株) | F1: ｴﾏｰｼﾞｪﾝｼｰ株(新興株) | G1: 全世界株式 | H1: 国債 | I1: 国内債券 | J1: 外国債(先進債) | K1: 外国債(エマージング債券) | L1: 国内REIT | M1: 海外REIT | N1: FX | O1: 総資産(評価額)
A2: 1 | B2: 2021-04-10 | C2: 420 | D2: 560 | E2: 2100 | F2: 700 | G2: 0 | H2: 2940 | I2: 0 | J2: 0 | K2: 0 | L2: 140 | M2: 140 | N2: 0 | O2: 7000
A3: 2 | B3: 2021-04-12 | C3: 600 | D3: 800 | E3: 3000 | F3: 1000 | G3: 0 | H3: 4200 | I3: 0 | J3: 0 | K3: 0 | L3: 200 | M3: 200 | N3: 0 | O3: 10000
A4: 3 | B4: 2021-04-13 | C4: 600 | D4: 1000 | E4: 1550 | F4: 1000 | G4: 0 | H4: 4200 | I4: 0 | J4: 0 | K4: 0 | L4: 200 | M4: 200 | N4: 0 | O4: 8750
A5: 4 | B5: 2022-01-09 | C5: 600 | D5: 1000 | E5: 1550 | F5: 1000 | G5: 0 | H5: 4200 | I5: 0 | J5: 0 | K5: 0 | L5: 200 | M5: 200 | N5: 0 | O5: 8750
